Cogmind - Beta 12 @@@ ROGUE MODE // 2023.09.02 @ 15:01:37 Player: Rogon Result: Self-destructed Performance ------------- Evolutions (1) 500 Regions Visited (2) 400 Robots Destroyed (16) 80 Value Destroyed (539) 539 Prototype IDs (0) 0 Alien Tech Used (0) 0 Bonus (0) 0 TOTAL SCORE: 1519 Bonus ------- None Cogmind --------- Core Integrity 37/400 Matter 275/300 Energy 100/100 System Corruption 0% Temperature Cool (0) Movement Core (250) Ox4 Location -9/Materials Parts ------- > --- POWER (1) -------- (None) > --- PROPULSION (3) --- (None) > --- UTILITY (3) ------ Small Storage Unit Hardened Light Armor Plating Hardened Light Armor Plating > --- WEAPON (2) ------- (None) > --- INVENTORY (8) ---- Structural Scanner Visual Processing Unit Improved Targeting Computer Improved Targeting Computer Peak State ------------ > --- POWER ------------ Improved Ion Engine > --- PROPULSION ------- Aluminum Leg Aluminum Leg Wheel > --- UTILITY ---------- Small Storage Unit Structural Scanner Hardened Light Armor Plating > --- WEAPON ----------- Heavy Assault Rifle Mining Claw > --- INVENTORY -------- Wheel Hardened Light Armor Plating Hardened Light Armor Plating Assault Rifle [Rating: 12] Favorites ----------- Power Ion Engine Engine Ion Engine Propulsion Aluminum Leg Leg Aluminum Leg Wheel Wheel Utility Small Storage Unit Device Structural Scanner Storage Small Storage Unit Protection Hardened Light Armor Plating Weapon Assault Rifle Energy Gun Medium Laser Ballistic Gun Assault Rifle Slashing Weapon Mining Claw Build | -11 -10 -9 ------- Run | Jun Mat Mat Slots Evolved 2 | . . 2 Power . | . . . Propulsion 1 | . . 1 Utility 1 | . . 1 Weapon . | . . . Parts Attached 32 | 6 10 16 Power 3 | 1 1 1 Engine 3 | 1 1 1 Core . | . . . Reactor . | . . . Propulsion 14 | 2 5 7 Treads . | . . . Leg 12 | 2 5 5 Wheel 2 | . . 2 Hover . | . . . Flight . | . . . Utility 9 | 1 2 6 Device 3 | . 1 2 Storage 2 | 1 . 1 Processor . | . . . Hackware . | . . . Protection 4 | . 1 3 Artifact . | . . . Weapon 6 | 2 2 2 Energy Gun 1 | . 1 . Energy Cannon . | . . . Ballistic Gun 4 | 2 . 2 Ballistic Cannon . | . . . Launcher . | . . . Special Weapon . | . . . Impact Weapon . | . . . Slashing Weapon 1 | . 1 . Piercing Weapon . | . . . Special Melee Weapon . | . . . Unidentified Prototypes . | . . . Parts Lost 13 | . 1 12 Power 2 | . . 2 Propulsion 5 | . . 5 Utility 2 | . . 2 Weapon 4 | . 1 3 Highest Loss Streak 8 | . 1 8 To Critical Strikes . | . . . Average Slot Usage (%) 86 | . 90 84 Engine 10 | . 14 7 Leg 25 | . 28 23 Device 7 | . 2 10 Storage 12 | . 14 11 Protection 8 | . 5 10 Energy Gun 5 | . 5 4 Ballistic Gun 9 | . 15 4 Slashing Weapon 7 | . 4 10 Naked Turns . | . . . Heaviest Build 22 | 12 19 22 Greatest Support 30 | 20 20 30 Greatest Overweight (x) 4 | 1 1 4 Average Overweight (x) . | . . . Largest Inventory Capacity 8 | 8 8 8 Average Capacity 7 | 6 8 8 Most Carried 8 | 5 8 6 Average Carried 4 | 2 5 5 Final Capacity 8 | 8 8 8 Final Carried 7 | 4 7 4 Class Distribution -------------------- 78% | Mutant 21% | Scavenger-Mutant Dominant Class ---------------- Mutant | -10/Materials Mutant | -9/Materials Resources | -11 -10 -9 ----------- Run | Jun Mat Mat Matter Collected 684 | 256 256 172 Remotely . | . . . Salvage Created 703 | . 302 401 Parts 41 | . 16 25 Haulers Intercepted . | . . . Recyclers Shooed 1 | . 1 . Parts Field Recycled . | . . . Retrieved Matter . | . . . Parts Self-Destructed . | . . . Prevented . | . . . Kills | -11 -10 -9 ------- Run | Jun Mat Mat Combat Hostiles Destroyed 13 | . 6 7 Melee 6 | . 1 5 Guns 6 | . 4 2 Classes Destroyed 5 | . 2 3 Worker 1 | . . 1 Recycler 1 | . . 1 Watcher 1 | . 1 . Grunt 11 | . 6 5 Sentry 2 | . . 2 Best Kill Streak 4 | . 2 4 Combat Bots Only 3 | . 2 3 Max Kills in Single Turn 1 | . 1 1 Gunslinging . | . . . Exploded . | . . . Melee 1 | . 1 1 Uniques/NPCs Destroyed . | . . . Combat | -11 -10 -9 -------- Run | Jun Mat Mat Damage Taken 2376 | . 580 1796 Core 499 | . 136 363 Absorbed by Shields . | . . . Core Remaining (%) 72 | 100 45 . Volleys Fired 69 | . 42 27 Largest 2 | . 2 1 Hottest 50 | . 50 50 Shots Fired 95 | . 68 27 Gun 95 | . 68 27 Cannon . | . . . Launcher . | . . . Special . | . . . Kinetic 83 | . 59 24 Thermal 12 | . 9 3 Explosive . | . . . Electromagnetic . | . . . Robot Hit Streak 11 | . 11 3 Robot Miss Streak 5 | . 5 3 Penetration Max . | . . . Secondary Targets . | . . . Shots Hit Robots 82 | . 44 38 Core Hits 28 | . 15 13 Critical Kills . | . . . Critical Parts Destroyed . | . . . Critical Strikes 2 | . 1 1 Burn 2 | . 1 1 Melee Attacks 36 | . 2 34 Impact . | . . . Slashing 36 | . 2 34 Piercing . | . . . Sneak Attacks 3 | . . 3 Combat Hostiles . | . . . Follow-up Attacks . | . . . Damage Inflicted 1377 | . 571 806 Guns 687 | . 522 165 Cannons . | . . . Explosions . | . . . Melee 690 | . 49 641 Ramming . | . . . Kinetic 561 | . 409 152 Thermal 126 | . 113 13 Explosive . | . . . Electromagnetic . | . . . Impact . | . . . Slashing 690 | . 49 641 Piercing . | . . . Highest Corruption . | . . . Average Corruption . | . . . Corruption Purged . | . . . Corruption Blocked . | . . . Overload Shots . | . . . Overflow Damage 15 | . . 15 Projectiles . | . . . Explosions . | . . . Melee 15 | . . 15 Knockbacks . | . . . Impact . | . . . Kinetic . | . . . Secondary . | . . . Self-Inflicted Damage . | . . . Shots . | . . . Rammed . | . . . Targets Rammed . | . . . Kicked . | . . . Crushed . | . . . Highest Temperature 221 | . 221 37 Average Temperature 60 | . 82 11 Received Heat Transfer 1284 | . 333 951 Siege Activations . | . . . Robots Corrupted . | . . . Combat Hostiles . | . . . Parts Fried . | . . . Impact Corruptions . | . . . Robots Melted 1 | . 1 . Combat Hostiles 1 | . 1 . Parts Melted 1 | . 1 . Heat Transferred 518 | . 407 111 Parts Sabotaged . | . . . Parts Stolen . | . . . Parts Stripped . | . . . Power Chain Reactions . | . . . Missiles Intercepted . | . . . Alert | -11 -10 -9 ------- Run | Jun Mat Mat Peak Influence 152 | . 127 152 Initial 20 | . . 20 Average 60 | . 85 52 Maximum Alert Level . | . . . Low Security (%) 100 | 100 100 100 Level 1 . | . . . Level 2 . | . . . Level 3 . | . . . Level 4 . | . . . Level 5 . | . . . High Security . | . . . Max Security . | . . . Squads Dispatched 3 | . 1 2 Investigation 1 | . . 1 Extermination . | . . . Reinforcement 2 | . 1 1 Assault . | . . . Garrison . | . . . Intercept . | . . . Searches Triggered . | . . . Construction Impeded . | . . . Haulers Reinforced . | . . . Active Scanning Responses . | . . . Cargo Convoy Interrupts . | . . . Stealth | -11 -10 -9 --------- Run | Jun Mat Mat Distress Signals 3 | . 1 2 Communications Jammed . | . . . Distress Signals . | . . . Times Spotted 33 | . 9 24 Peak Tracking Total 11 | . 3 11 Tactical Retreats 2 | . . 2 Traps | -11 -10 -9 ------- Run | Jun Mat Mat Traps Triggered 1 | . . 1 Indirectly . | . . . Trap Hack Attempts . | . . . Triggered . | . . . Disarmed . | . . . Reprogrammed . | . . . Reused . | . . . Traps Extracted . | . . . Installed . | . . . Triggered . | . . . Machines | -11 -10 -9 ---------- Run | Jun Mat Mat Machines Disabled . | . . . Max in Single Turn . | . . . Machines Repaired . | . . . Machines Sabotaged . | . . . Overloaded Fab Kills . | . . . Hacking | -11 -10 -9 --------- Run | Jun Mat Mat Machines Accessed 3 | . . 3 Terminals 2 | . . 2 Fabricators . | . . . Repair Stations 1 | . . 1 Recycling Units . | . . . Scanalyzers . | . . . Garrison Access . | . . . Total Hacks 6 | . . 6 Successful 2 | . . 2 Failed 4 | . . 4 Catastrophic 1 | . . 1 Database Lockouts . | . . . Manual . | . . . Terminals 4 | . . 4 Fabricators . | . . . Repair Stations 2 | . . 2 Recycling Units . | . . . Scanalyzers . | . . . Garrison Access . | . . . Terminal Hacks 2 | . . 2 Record 2 | . . 2 Fabricator Hacks . | . . . Repair Station Hacks . | . . . Recycling Unit Hacks . | . . . Scanalyzer . | . . . Garrison Access Hacks . | . . . Unauthorized Hacks . | . . . Terminals . | . . . Fabricators . | . . . Repair Stations . | . . . Recycling Units . | . . . Scanalyzers . | . . . Garrison Access . | . . . Data Cores Recovered . | . . . Used . | . . . Hacking Detections 1 | . . 1 Full Trace Events . | . . . Feedback Events . | . . . Feedback Blocked . | . . . Robot Schematics Acquired . | . . . Robots Built . | . . . Authchips . | . . . Time . | . . . Total Robot Build Rating . | . . . Part Schematics Acquired . | . . . Parts Built . | . . . Authchips . | . . . Time . | . . . Total Part Build Rating . | . . . Parts Repaired . | . . . Time . | . . . Parts Recycled . | . . . Recycled Matter . | . . . Retrieved Matter . | . . . Retrieved Components . | . . . Parts Scanalyzed . | . . . Part Schematics Acquired . | . . . Parts Damaged . | . . . Bothacking | -11 -10 -9 ------------ Run | Jun Mat Mat Used RIF Installer . | . . . Robots Hacked . | . . . Non-combat . | . . . Combat . | . . . Robot Hacks Applied . | . . . Relay Couplers Released . | . . . Fabnet Peak Effective % . | . . . Robots Rewired . | . . . Allies Hacked . | . . . Hacks Repelled . | . . . Allies | -11 -10 -9 -------- Run | Jun Mat Mat Total Allies . | . . . Largest Group . | . . . Highest-Rated Group . | . . . Highest-Rated Ally . | . . . Total Orders . | . . . Ally Attacks . | . . . Total Damage . | . . . Kills . | . . . Allies Corrupted . | . . . Allies Melted . | . . . Intel | -11 -10 -9 ------- Run | Jun Mat Mat Robot Analysis Total . | . . . Derelict Logs Recovered . | . . . Drone Launches . | . . . Drone Recoveries . | . . . Exploration | -11 -10 -9 ------------- Run | Jun Mat Mat Turns Passed 1155 | 113 440 602 Spaces Moved 586 | 63 199 324 Core 30 | 17 . 13 Treads . | . . . Legs 546 | 46 199 301 Wheels 10 | . . 10 Hover . | . . . Flight . | . . . Fastest Speed 50 | 50 120 95 Average Speed 125 | 101 135 123 Slowest Speed 250 | 120 190 250 Overloaded Moves . | . . . Propulsion Burnouts . | . . . Robots Hopped . | . . . Cave-ins Triggered . | . . . Exploration Rate (%) 24 | 6 43 24 Regions Visited 2 Branch Regions . Pre-discovered Areas . | . . . Known Exits Taken . | . . . Unknown Exits Taken 2 | 1 1 . Scrap Searched . | . . . Spaces Dug . | . . . Terrain Destroyed . | . . . Melee . | . . . Projectile . | . . . AOE . | . . . Terrain Rammed . | . . . Walls Destroyed . | . . . Machines Disabled . | . . . Actions | -11 -10 -9 --------- Run | Jun Mat Mat Total 846 | 111 298 437 Wait 72 | 35 26 11 Move 584 | 62 198 324 Hop . | . . . Pick Up 33 | 8 12 13 Fast Attach 2 | 2 . . Attach 25 | 4 5 16 Detach 4 | . 1 3 Swap 5 | . 5 . Drop 16 | . 7 9 Fire 69 | . 42 27 Melee 36 | . 2 34 Ram . | . . . Kick . | . . . Crush . | . . . Escape Stasis . | . . . Rewire . | . . . Trap . | . . . Miscellaneous . | . . . Route ------- -11/Junkyard -10/Materials (discovered 3 exits: *Mat / [*Min x2]) -9/Materials History --------- Turn | Location | Event 2 | -11/Junkyard | Met Revision 17 52 | -11/Junkyard | Discovered new exit (range 16) 114 | -11/Junkyard | Entered Materials 314 | -10/Materials | Build established: Mutant 337 | -10/Materials | Discovered new exit (range 6) 517 | -10/Materials | Core integrity fell below 50% 531 | -10/Materials | Discovered new exit (range 12) 534 | -10/Materials | Discovered new exit (range 15) 554 | -10/Materials | Entered another Materials area 554 | -9/Materials | Evolved 2 slots: Propulsion x1, Utility x1 843 | -9/Materials | Lost 3 parts (1n1u1w) 1108 | -9/Materials | Core integrity fell below 50% 1132 | -9/Materials | Core integrity fell below 20% 1156 | -9/Materials | Self-destructed Last Messages --------------- 01063_ O-16 Technician locks terminal. 01072_ C-30 ARC bursts open, deploying its payload. 01072_ G-47 Trooper unfolds itself. 01072_ G-34 Mercenary unfolds itself. 01084_ G-34 Mercenary destroyed. 01090_ Imp. Ion Engine destroyed. 01103_ Aluminum Leg destroyed. 01107_ W-16 Scout sends out distress signal. 01115_ Aluminum Leg destroyed. 01117_ Mining Claw destroyed. 01118_ Critical hit (Burn: +37). 01119_ Aluminum Leg destroyed. 01124_ Hrd. Light Armor Plating destroyed. 01125_ M-13 Machinist repairs G-47 Trooper. 01126_ R-06 Scavenger collects Ion Engine. 01127_ Acquired 15 matter. 01127_ Critical hit (Burn: +37). 01130_ Assault Rifle destroyed. 01135_ Acquired Wheel. 01149_ Wheel destroyed. Map ----- +----------------------------------------------------+ | ?????????????????????????????????????????????????? | | ?????????????????????????????????????????????????? | | ?????????????????????????????????????????????????? | | ?????????????????????????????????????????????????? | | ?????????????????????????????????????????????????? | | ?????????????????????????????????????????????????? | | ?????????????????????????????????????????????????? | | ?????????????????????????????????????????????????? | | ?????????????????????????????????????????????????? | | ?????????????????????????????????????????????????? | | ??????? # ???????????????????????????????????????? | | ??????? # ? # #####?????????????????????????? | | ??????? # ? ############?????????????????????????? | | ???????## # ##?????????????????????????? | | ####???## # !!* ##?????????????????????????? | | ####???## #* !** ##?????????????????????????? | | ???????%+% !* ##?????????????????????????? | | ??????? #! "##?????????????????????????? | | ???????? # T#####??????????????????????? | | ??????? # "#####??????????????????????? | | ##???????## + ????????????????? | | # ???????######/##+######??????????????????????? | | # ???????###### ######??????????????????????? | | # ???????????## ###### ?????????????????????? | | # ???????????## ###### ?????????????????????? | | # ???????????## # g@# ?????????????????????? | | # ???????????## #gg""# ?????????????????????? | | # ???????????## #ggT"# ?????????????????????? | | # ???????????## #gb""# ?????????????????????? | | # ???????## %#tgg # ?????????????????????? | | ############?## #% # ?????????????????????? | | # ########?## %%+ # ?????????????????????? | | # ?## #% # ?????????????????????? | | # ?????## # % # ?????????????????????? | | # ??????## #######?????????????????????? | | # ## ##+##### ?????????????????????? | | ##+############ # ##???????????????????????? | | + ##???????????????????????? | | #### ##???????????????????????? | | #### ##???????????????????????? | | #############+##### "" ##???????????????????????? | | ########## # S"" ##???????????????????????? | | ???????## "" # "" ##???????????????????????? | | ???????### """ ########???????????????????????? | | ???????### R" ########???????????????????????? | | ????????## """ ##?????????????????????????????? | | ????????##!!! ##?????????????????????????????? | | ????????##!!! ##?????????????????????????????? | | ????????##!! ##?????????????????????????????? | | ????????## ##?????????????????????????????? | +----------------------------------------------------+ Best States ------------- Heat Dissipation 28 Energy Generation 12 Energy Capacity 265 Matter Stores 300 Matter Capacity 300 Sight Range 16 Terrain Scan Density 10 Armor Coverage 300 Evasion (%) 55 Item Schematics ----------------- None Robot Schematics ------------------ None Fabricated ------------ Nothing Alien Tech Used ----------------- None Achievements -------------- None Challenges ------------ None Game ------ Seed ShadingGodMicroactuators Manual? 0 Play Time 00:50:01 Cumulative 8.8 hours Start 2023.09.02 @ 14:09:24 End 2023.09.02 @ 15:01:37 Sessions 1 Manual Loads 0 Difficulty Rogue Special Mode None Game No. 12 Rogue 12 Adventurer 0 Explorer 0 Win Type - Total 0 Types 0/0/0/0/0/0/0/0/0 Lore% 5 Gallery% 10 Achievement% 7 Wizard Run 0 Options --------- ASCII 0 Keyboard 0 Movement Numpad Keybinds 0 Fullscreen 1 Font 18/SmallcapsGlow Map View 76x50 Tactical HUD 1 Map Filters NONE Filters NONE Steam 1 RUN: f87c8691-ab59-4938-bdb9-1288ae76c4c3